Cogmind - Beta 16.1 @@@ ROGUE MODE // 2026.04.13 @ 16:58:45 Player: Krysmphoenix Result: Destroyed by G-34 Mercenary with Small Laser Performance ------------- Evolutions (0) 0 Regions Visited (1) 200 Robots Destroyed (15) 75 Value Destroyed (192) 192 Prototype IDs (0) 0 Alien Tech Used (0) 0 Bonus (0) 0 TOTAL SCORE: 467 Bonus ------- None Cogmind --------- Core Integrity 0/250 Matter 271/300 Energy 75/125 System Corruption 0% Temperature Warm (150) Movement Flying (37) Location -10/Materials Parts ------- > --- POWER (1) -------- Light Ion Engine > --- PROPULSION (2) --- Flight Unit Flight Unit > --- UTILITY (2) ------ Signal Interpreter ECM Suite > --- WEAPON (2) ------- Beam Cannon > --- INVENTORY (5) ---- Wheel Wheel Improved Heat Sink Peak State ------------ > --- POWER ------------ Ion Engine > --- PROPULSION ------- Wheel Wheel > --- UTILITY ---------- Small Storage Unit Improved Terrain Scanner > --- WEAPON ----------- Medium Laser Light Assault Rifle > --- INVENTORY -------- Ion Engine Wheel Wheel Assault Rifle [Rating: 9] Favorites ----------- Power Light Ion Engine Engine Light Ion Engine Propulsion Wheel Wheel Wheel Hover Unit Hover Unit Flight Unit Flight Unit Utility ECM Suite Device ECM Suite Storage Small Storage Unit Processor Signal Interpreter Weapon Light Assault Rifle Energy Gun Medium Laser Energy Cannon Beam Cannon Ballistic Gun Light Assault Rifle Build | -11 -10 ------- Run | Yrd Mat Slots Evolved . | . . Power . | . . Propulsion . | . . Utility . | . . Weapon . | . . Parts Attached 21 | 8 13 Power 3 | 1 2 Engine 3 | 1 2 Core . | . . Reactor . | . . Propulsion 8 | 3 5 Treads . | . . Leg . | . . Wheel 3 | 3 . Hover 2 | . 2 Flight 3 | . 3 Utility 6 | 2 4 Device 4 | 1 3 Storage 1 | 1 . Processor 1 | . 1 Hackware . | . . Protection . | . . Artifact . | . . Weapon 4 | 2 2 Energy Gun 1 | 1 . Energy Cannon 1 | . 1 Ballistic Gun 2 | 1 1 Ballistic Cannon . | . . Launcher . | . . Special Weapon . | . . Impact Weapon . | . . Slashing Weapon . | . . Piercing Weapon . | . . Special Melee Weapon . | . . Unidentified Prototypes . | . . Parts Lost 4 | . 4 Power 1 | . 1 Propulsion 2 | . 2 Utility . | . . Weapon 1 | . 1 Highest Loss Streak 3 | . 3 To Critical Strikes . | . . Average Backups 3 | 2 4 Power . | . . Propulsion 2 | 1 2 Utility . | . . Weapon . | 1 . Tool/Special . | . . Unused Backups 6 | 2 4 Power 1 | . 1 Propulsion 4 | 2 2 Utility . | . . Weapon 1 | . 1 Tool/Special . | . . Average Slot Usage (%) 93 | . 93 Engine 13 | . 13 Wheel 9 | . 9 Hover 9 | . 9 Flight 8 | . 8 Device 24 | . 24 Processor 2 | . 2 Energy Gun 9 | . 9 Ballistic Gun 13 | . 13 Peak Build Rating 9 | 9 9 Average Rating 7 | 4 8 On Entrance 4 | . 9 Avg Prop Armor Cover (%) . | . . Naked Turns . | . . Heaviest Build 14 | 14 14 Greatest Support 26 | 26 20 Greatest Overweight (x) 1 | . 1 Average Overweight (x) . | . . Largest Inventory Capacity 8 | 8 8 Average Capacity 5 | 5 5 Most Carried 5 | 5 5 Average Carried 3 | 3 4 Final Capacity 8 | 8 5 Final Carried 4 | 4 3 Class Distribution -------------------- 64% | Mutant 35% | Scavenger-Mutant Dominant Class ---------------- Mutant | -10/Materials Resources | -11 -10 ----------- Run | Yrd Mat Matter Collected 453 | 287 166 Remotely . | . . Salvage Created 373 | 146 227 Parts 30 | 14 16 Haulers Intercepted . | . . Recyclers Shooed . | . . Parts Field Recycled . | . . Retrieved Matter . | . . Parts Self-Destructed . | . . Prevented . | . . Parts Restored . | . . Kills | -11 -10 ------- Run | Yrd Mat Combat Hostiles Destroyed 8 | . 8 Guns 8 | . 8 Classes Destroyed 6 | 2 4 Worker 1 | . 1 Tunneler 4 | 4 . Recycler 1 | 1 . Watcher 1 | . 1 Swarmer 6 | . 6 Grunt 2 | . 2 Best Kill Streak 3 | 2 3 Combat Bots Only 3 | . 3 Max Kills in Single Turn 1 | 1 1 Gunslinging . | . . Exploded . | . . Melee . | . . Uniques/NPCs Destroyed . | . . Combat | -11 -10 -------- Run | Yrd Mat Hostile Shots Fired 88 | . 88 Missed 25 | . 25 Hits 63 | . 63 Projectile 63 | . 63 Critical Strikes 1 | . 1 Damage Taken 648 | . 648 Core 253 | . 253 Absorbed by Shields . | . . Regen/Repaired (Parts) 10 | . 10 Core Remaining (%) 100 | 100 . Volleys Fired 74 | 17 57 Largest 2 | 2 2 Hottest 70 | 70 70 Shots Fired 117 | 34 83 Gun 113 | 34 79 Cannon 4 | . 4 Launcher . | . . Special . | . . Kinetic 70 | 17 53 Thermal 47 | 17 30 Explosive . | . . Electromagnetic . | . . Robot Hit Streak 21 | 12 21 Robot Miss Streak 5 | 3 5 Penetration Max . | . . Secondary Targets 1 | . 1 Max Gunslinging Chain 1 | . 1 Shots Hit Robots 68 | 20 48 Core Hits 25 | 8 17 Critical Kills . | . . Critical Parts Destroyed . | . . Critical Strikes 3 | 1 2 Burn 3 | 1 2 Melee Attacks . | . . Impact . | . . Slashing . | . . Piercing . | . . Sneak Attacks . | . . Combat Hostiles . | . . Follow-up Attacks . | . . Damage Inflicted 687 | 206 481 Guns 652 | 206 446 Cannons 35 | . 35 Explosions . | . . Melee . | . . Ramming . | . . Kinetic 321 | 78 243 Thermal 366 | 128 238 Explosive . | . . Electromagnetic . | . . Impact . | . . Slashing . | . . Piercing . | . . Highest Corruption . | . . Average Corruption . | . . Corruption Purged . | . . Corruption Blocked . | . . Overload Shots . | . . Overflow Damage . | . . Projectiles . | . . Explosions . | . . Melee . | . . Knockbacks . | . . Impact . | . . Kinetic . | . . Secondary . | . . Self-Inflicted Damage . | . . Shots . | . . Rammed . | . . Targets Rammed . | . . Kicked . | . . Crushed . | . . Highest Temperature 270 | 80 270 Average Temperature 60 | 37 71 Received Heat Transfer 210 | . 210 Siege Activations . | . . Martial Activations . | . . Shielding Activations . | . . Robots Disrupted . | . . Combat Hostiles . | . . Robots Corrupted . | . . Combat Hostiles . | . . Parts Fried . | . . Impact Corruptions . | . . Robots Melted . | . . Combat Hostiles . | . . Parts Melted 5 | 2 3 Heat Transferred 1258 | 444 814 Parts Sabotaged . | . . Parts Stolen . | . . Parts Stripped . | . . Power Chain Reactions . | . . Alert | -11 -10 ------- Run | Yrd Mat Maximum Alert Level . | . . Low Security (%) 100 | 100 100 Level 1 . | . . Level 2 . | . . Level 3 . | . . Level 4 . | . . Level 5 . | . . High Security . | . . Max Security . | . . Peak Influence 81 | 10 81 Initial . | . . Average 15 | 1 19 Influence Increases 278 | 25 253 Destroy 0b10 Robot/C 160 | . 160 Destroy 0b10 Robot/NC 35 | 25 10 Destroy Leader 32 | . 32 Successful Hack 19 | . 19 Destroy Structure 2 | . 2 Partial Spotted 30 | . 30 Influence Decreases 214 | 25 189 Time Decay 174 | 25 149 Lost Part 40 | . 40 Squads Dispatched 1 | . 1 Investigation . | . . Extermination . | . . Reinforcement 1 | . 1 Assault . | . . Garrison . | . . Intercept . | . . Searches Triggered . | . . Construction Impeded . | . . Haulers Reinforced . | . . Active Scanning Responses . | . . Cargo Convoy Interrupts . | . . Stealth | -11 -10 --------- Run | Yrd Mat Distress Signals 6 | . 6 Communications Jammed . | . . Distress Signals . | . . Times Spotted 19 | . 19 Peak Tracking Total 3 | . 3 Tactical Retreats 5 | . 5 ECM-based Alert Blocks 6 | . 6 Traps | -11 -10 ------- Run | Yrd Mat Traps Triggered . | . . Indirectly . | . . Trap Hack Attempts . | . . Triggered . | . . Disarmed . | . . Reprogrammed . | . . Reused . | . . Traps Extracted . | . . Installed . | . . Triggered . | . . Machines | -11 -10 ---------- Run | Yrd Mat Machines Disabled . | . . Max in Single Turn . | . . Machines Repaired . | . . Machines Dismantled . | . . Machines Sabotaged . | . . Overloaded Fab Kills . | . . Hacking | -11 -10 --------- Run | Yrd Mat Machines Accessed 5 | . 5 Terminals 4 | . 4 Fabricators . | . . Repair Stations 1 | . 1 Recycling Units . | . . Scanalyzers . | . . Garrison Access . | . . Total Hacks 14 | . 14 Successful 6 | . 6 Failed 8 | . 8 Catastrophic . | . . Database Lockouts . | . . Manual 10 | . 10 Terminals 12 | . 12 Fabricators . | . . Repair Stations 2 | . 2 Recycling Units . | . . Scanalyzers . | . . Garrison Access . | . . Terminal Hacks 1 | . 1 Locate Traps 1 | . 1 Fabricator Hacks . | . . Repair Station Hacks 2 | . 2 Scan Component 1 | . 1 Repair 1 | . 1 Recycling Unit Hacks . | . . Scanalyzer . | . . Garrison Access Hacks . | . . Unauthorized Hacks 3 | . 3 Terminals 3 | . 3 Assimilate 1 | . 1 Botnet 2 | . 2 Fabricators . | . . Repair Stations . | . . Recycling Units . | . . Scanalyzers . | . . Garrison Access . | . . Data Cores Recovered . | . . Used . | . . Hacking Detections 5 | . 5 Full Trace Events 1 | . 1 Feedback Events . | . . Feedback Blocked . | . . Robot Schematics Acquired . | . . Robots Built . | . . Authchips . | . . Time . | . . Total Robot Build Rating . | . . Part Schematics Acquired . | . . Parts Built . | . . Authchips . | . . Time . | . . Total Part Build Rating . | . . Part Studies Acquired . | . . Parts Repaired 1 | . 1 Time 26 | . 26 Parts Recycled . | . . Recycled Matter . | . . Retrieved Matter . | . . Retrieved Components . | . . Parts Scanalyzed . | . . Part Schematics Acquired . | . . Parts Damaged . | . . Bothacking | -11 -10 ------------ Run | Yrd Mat Used RIF Installer . | . . Robots Hacked . | . . Non-combat . | . . Combat . | . . Robot Hacks Applied . | . . Relay Couplers Released . | . . Fabnet Peak Effective % . | . . Robots Rewired . | . . Allies Hacked . | . . Hacks Repelled . | . . Allies | -11 -10 -------- Run | Yrd Mat Total Allies 1 | . 1 Largest Group 1 | . 1 Highest-Rated Group 10 | . 10 Highest-Rated Ally 10 | . 10 Total Orders . | . . Ally Attacks . | . . Total Damage . | . . Kills . | . . Allies Corrupted . | . . Allies Melted . | . . Intel | -11 -10 ------- Run | Yrd Mat Active Infowar (turns) 564 | 13 551 Sensors 68 | . 68 Terrain 232 | 13 219 ECM 458 | . 458 Robot Analysis Total . | . . Derelict Logs Recovered . | . . Drone Launches . | . . Drone Recoveries . | . . Exploration | -11 -10 ------------- Run | Yrd Mat Turns Passed 741 | 163 578 Spaces Moved 612 | 95 517 Core 5 | 5 . Treads . | . . Legs . | . . Wheels 244 | 90 154 Hover 187 | . 187 Flight 176 | . 176 Fastest Speed 37 | 50 37 Average Speed 61 | 83 57 Slowest Speed 125 | 90 125 Overloaded Moves . | . . Propulsion Burnouts . | . . Robots Hopped 2 | . 2 Potential Cave-ins . | . . Cave-ins Triggered . | . . Exploration Rate (%) 36 | 4 69 Regions Visited 1 Branch Regions . Pre-discovered Areas . | . . Known Exits Taken . | . . Unknown Exits Taken 1 | 1 . Scrap Searched . | . . Spaces Dug . | . . Terrain Destroyed . | . . Melee . | . . Projectile . | . . AOE . | . . Terrain Rammed . | . . Walls Destroyed . | . . Machines Disabled . | . . Actions | -11 -10 --------- Run | Yrd Mat Total 874 | 148 726 Wait 122 | 10 112 Move 607 | 94 513 Hop 2 | . 2 Pick Up 30 | 15 15 Fast Attach . | . . Attach 13 | 7 6 Detach . | . . Swap 10 | 1 9 Drop 16 | 4 12 Fire 74 | 17 57 Melee . | . . Ram . | . . Kick . | . . Crush . | . . Escape Stasis . | . . Rewire . | . . Trap . | . . Miscellaneous . | . . Route ------- -11/Scrapyard -10/Materials (discovered 3 exits: *Mat x2 / [*Min]) History --------- Turn | Location | Event 22 | -11/Scrapyard | Discovered new exit (range 15) 164 | -11/Scrapyard | Entered Materials 317 | -10/Materials | Build established: Mutant 439 | -10/Materials | Discovered new exit (range 16) 495 | -10/Materials | Discovered new exit (range 14) 589 | -10/Materials | Discovered new exit (range 10) 618 | -10/Materials | Repaired ECM Suite 644 | -10/Materials | Identified exit to Materials 679 | -10/Materials | Core integrity fell below 50% 735 | -10/Materials | Core integrity fell below 20% 742 | -10/Materials | Destroyed by G-34 Mercenary with Small Laser Last Messages --------------- 00630_ O-16 Technician accesses terminal... 00630_ O-16 Technician IFF database reprogrammed. 00637_ Acquired Signal Interpreter. 00644_ EXIT=IDENTIFIED: MATERIALS 00645_ Technician 1a reveals location of hidden door. 00661_ ALERT: Hostiles spotted, dispatching reinforcements to Terminal M008. 00661_ Technician 1a reveals location of Alarm Trap. 00678_ S-10 Pest destroyed. 00680_ Acquired 17 matter. 00682_ K-01 Serf collects debris. 00701_ Flight Unit destroyed. 00707_ Lgt. Ion Engine destroyed. 00707_ S-10 Pest destroyed. 00730_ Lgt. Assault Rifle destroyed. 00731_ Acquired 16 matter. 00732_ Acquired Beam Cannon. Map ----- +----------------------------------------------------+ | ?????????????????????????????????# #####+### | | ??????????????????????????????#??# ## "T" | | ?????????????????????????????????# ## | | ?????????????????????????????????# ## | | ?????????????????????????????????# ## | | ?????????????????????????????????# ######### | | ?????????????????????????????????# #???????? | | ?????????????????????????????????# #???????? | | ?????????????????????????????????# +???????? | | ?????????????????????????????? ??# #???????? | | ?????????????????????????????????# #???????? | | ?????????????????????????????????# #?? ????? | | ?????????????????????????????????# ######### | | ?????????????????#???????????????# # | | ?????????????????+ ?????????????# # "T" | | ?????????????????# ############# # | | ?????????????????# ^^ # | | ?????????????????# ^^ ^ / = | | ?????????????????# ^ # | | ?????????????????+ ###### ###### ### || | | ??????????????????????????# ######+### | | | ????????????????###########+## """ ## | | ????????????????# # """ ########## | | ????????????????# !] """" # """ #?????# | | ????????######### !]g"""" =+ #?????# | | ?????""" + *g% =@ """" # ]#?????# | | ??????""" # [# g t # ####### | | ???????????# ##;#####+#########+## # | | ???????????# ? *[ ^^ # ! | | ?????????? / ^^ # | | ????????? #^ """ ^^ # | | ??????? ?# """ ############### # | | ?????? "T??# """ #????????????### ##### | | ????? "???# ^ #????????????# # #???? | | ????#??????# ? ^ #????????????# #???? | | ????????????? """" #????????????# # #???? | | ???????????????""" #????????????### #???? | | ???????????????""" #??????????????# #???? | | ?????????????????? #??????????????# ####+ | | ?????????????????? #??????????????# # | | ?????????????????? #??????????????# # """ | | ?????????????????? "??############# # "R" | | ?????????????????? ????# # # " " | | ?????????????????????????#"" # + | | ?????????????????????????#"" # # !!= | | ?????????????????????????#"T # " " # !!= | | ?????????????????????????#"" # "Y" # !== | | ?????????????????????????#"" # """ # | | ?????????????????????????# + ##### | | ?????????????????????????#!! # #???? | +----------------------------------------------------+ Best States ------------- Heat Dissipation 39 Energy Generation 10 Energy Capacity 250 Matter Stores 300 Matter Capacity 300 Sight Range 16 Robot Scan Range 14 Terrain Scan Range 16 Terrain Scan Density 10 ECM Strength 1 Evasion (%) 62 Item Schematics ----------------- None Robot Schematics ------------------ None Fabricated ------------ Nothing Repaired ---------- ECM Suite | 50% | -10/Materials Studied --------- None Alien Tech Used ----------------- None Achievements -------------- None Challenges ------------ None Game ------ Seed WeightMappingCore Manual? 0 Play Time 00:13:02 Cumulative 19.5 hours Start 2026.04.13 @ 16:48:39 End 2026.04.13 @ 16:58:45 Sessions 1 Manual Loads 0 Difficulty Rogue Special Mode None Game No. 35 Rogue 32 Adventurer 3 Explorer 0 Win Type - Total 1 Types 1/0/0/0/0/0/0/0/0/0 Lore% 22 Gallery% 19 Achievement% 21 Wizard Run 0 Options --------- Layout 1 ASCII 0 Keyboard 0 Movement Numpad Keybinds 0 Fullscreen 2 Font 24/Proggy Map View 50x35 Zoom Use 0% Tactical HUD 1 Map Filters NONE Filters NONE Steam 1 RUN: f3158e2d-94bc-496b-a6d4-7fa14e90aef7